bitfinex/quotes_SOLUSD_20250602
["timestamp","ask_amount","ask_price","bid_price","bid_amount"]
[1748839220945,39.0,155.94,155.93,14.46997203]
[1748839221149,39.0,155.94,155.93,9.26075934]
[1748839222279,158.92,155.96,155.93,9.26075934]
[1748839222454,39.0,155.94,155.93,9.26075934]
[1748839227080,158.92,155.96,155.93,15.67367551]
[1748839227283,10.02,156.0,155.95,9.26075934]
[1748839227468,10.02,156.0,155.93,7.94481617]
[1748839227469,10.02,156.0,155.99,9.26075934]
[1748839227982,49.02,156.0,155.99,9.26075934]
[1748839229263,49.02,156.0,155.99,14.45701328]
[1748839229886,10.02,156.0,155.99,14.45701328]
[1748839230262,49.02,156.0,155.99,14.45701328]
[1748839230463,49.02,156.0,155.99,20.86768063]
[1748839230761,10.02,156.0,155.99,20.86768063]
[1748839230976,49.02,156.0,155.99,20.86768063]
[1748839233296,39.0,156.0,155.99,20.86768063]
[1748839234963,102.32,156.04,155.99,20.86768063]
[1748839235164,38.98,156.03,156.01,14.45701328]
[1748839235459,38.98,156.03,156.02,14.45701328]
[1748839237187,38.98,156.03,156.02,20.86639915]
[1748839237567,102.32,156.04,156.02,20.86639915]
[1748839237762,38.98,156.03,156.02,20.86639915]
[1748839238266,102.32,156.04,156.02,20.86639915]
[1748839238485,38.98,156.03,156.02,20.86639915]
[1748839239385,102.32,156.04,156.02,20.86639915]
[1748839239686,38.98,156.03,156.02,20.86639915]
[1748839242993,38.98,156.03,156.02,14.45701328]
[1748839249092,38.98,156.03,156.02,20.86644796]
[1748839249284,38.98,156.03,156.02,15.6590235]
[1748839257099,38.98,156.03,156.02,9.24958882]
[1748839257511,38.98,156.03,156.02,15.6590235]
[1748839259892,38.98,156.03,156.02,9.24958882]
[1748839260207,38.98,156.03,156.01,9.24958882]
[1748839262215,38.98,156.03,156.01,15.65932527]
[1748839265018,38.98,156.03,156.0,9.24958882]
[1748839266015,38.98,156.03,156.01,9.24958882]
[1748839276416,10.02,156.04,156.02,9.24958882]
[1748839276619,10.02,156.04,156.03,9.24958882]
[1748839276810,48.98,156.04,156.03,9.24958882]
[1748839278310,48.98,156.04,156.03,15.65861272]
[1748839288229,48.98,156.04,156.03,9.24958882]
[1748839293243,48.98,156.04,156.03,15.65861272]
[1748839293636,48.98,156.04,156.03,9.24958882]
[1748839295034,38.96,156.04,156.03,9.24958882]
[1748839295644,38.96,156.04,156.03,15.65861272]
[1748839299067,10.0,156.05,156.03,15.65861272]
[1748839299266,10.0,156.05,156.04,9.24958882]
[1748839299553,10.0,156.09,156.04,9.24958882]
[1748839299765,10.0,156.09,156.03,22.43158366]
[1748839299766,38.94,156.08,156.03,22.43158366]
[1748839299932,10.0,156.09,156.03,22.43158366]
[1748839300128,38.94,156.08,156.03,22.43158366]
[1748839300338,10.0,156.09,156.03,48.43158366]
[1748839300540,38.94,156.08,156.03,48.43158366]
[1748839300935,38.94,156.08,156.07,9.24958882]
[1748839301549,48.18958882,156.08,156.03,9.24958882]
[1748839301758,9.24958882,156.07,156.03,9.24958882]
[1748839302135,6.40742916,156.07,156.03,9.24958882]
[1748839302854,54.59669873,156.08,156.04,9.24958882]
[1748839306846,15.65669873,156.08,156.04,9.24958882]
[1748839307148,38.94,156.07,156.04,9.24958882]
[1748839308949,45.34740743,156.07,156.04,9.24958882]
[1748839310050,9.24958882,156.05,156.01,9.24958882]
[1748839311141,15.65780091,156.05,156.01,9.24958882]
[1748839313338,10.0,156.04,156.01,9.24958882]
[1748839313539,48.18958882,156.03,155.99,9.24958882]
[1748839314557,9.24958882,156.02,155.98,9.24958882]
[1748839314731,9.24958882,156.02,155.97,9.24958882]
[1748839315061,9.24958882,156.0,155.96,9.24958882]
[1748839315238,48.94,155.99,155.95,35.24958882]
[1748839315441,64.60041424,155.99,155.95,9.24958882]
[1748839315645,64.60041424,155.99,155.94,9.24958882]
[1748839316255,64.60041424,155.99,155.95,9.24958882]
[1748839316454,55.35082542,155.99,155.95,9.24958882]
[1748839322661,64.60041424,155.99,155.95,9.24958882]
[1748839323959,15.66087967,155.98,155.93,41.66261537]
[1748839324161,9.24958882,155.97,155.92,9.24958882]
[1748839325160,6.41190048,155.96,155.92,9.24958882]
[1748839325349,38.94,155.95,155.92,9.24958882]
[1748839328171,38.94,155.95,155.93,9.24958882]
[1748839330481,38.94,155.95,155.94,9.24958882]
[1748839332180,38.96,155.95,155.94,9.24958882]
[1748839333485,38.96,155.95,155.93,15.66257912]
[1748839336776,38.96,155.95,155.9,9.24958882]
[1748839336777,54.62190586,155.95,155.9,9.24958882]
[1748839336981,9.24958882,155.92,155.86,6.41594548]
[1748839337170,58.20958882,155.91,155.84,6.41683778]
[1748839337374,48.20958882,155.9,155.84,6.41683778]
[1748839337569,48.20958882,155.9,155.85,9.24958882]
[1748839337982,38.96,155.9,155.87,9.24958882]
[1748839339702,38.96,155.9,155.86,9.24958882]
[1748839339876,38.96,155.9,155.85,6.41630777]
[1748839340077,38.96,155.9,155.86,9.24958882]
[1748839340486,38.96,155.9,155.87,9.24958882]
[1748839341203,38.96,155.9,155.87,14.48178214]
[1748839342478,53.44178214,155.9,155.86,14.48178214]
[1748839342786,38.96,155.89,155.86,14.48178214]
[1748839344008,38.96,155.89,155.87,14.48178214]
[1748839346314,38.96,155.89,155.88,14.48178214]
[1748839346994,38.96,155.89,155.87,20.89720537]
[1748839347317,38.96,155.89,155.87,14.48178214]
[1748839349817,38.96,155.89,155.87,20.89736915]
[1748839350413,10.0,155.91,155.88,14.48178214]
[1748839350617,10.0,155.91,155.9,14.48178214]
[1748839350824,48.96,155.91,155.9,20.89615032]
[1748839351306,10.0,155.91,155.9,20.89615032]
[1748839355215,48.96,155.91,155.9,20.89615032]
[1748839355400,48.96,155.91,155.9,14.48178214]
[1748839356108,48.96,155.91,155.9,20.89615032]
[1748839357603,48.96,155.91,155.9,14.48178214]
[1748839360815,48.96,155.91,155.9,20.89615032]
[1748839362528,10.0,155.95,155.9,20.89615032]
[1748839362739,10.0,155.95,155.94,14.48178214]
[1748839363027,38.96,155.95,155.94,14.48178214]
[1748839363225,10.0,155.99,155.94,9.25546263]
[1748839363435,38.96,155.96,155.94,9.25546263]
[1748839363606,38.96,155.96,155.95,9.25546263]
[1748839364014,38.96,155.96,155.95,15.66777426]
[1748839364418,38.96,155.97,155.95,15.66777426]
[1748839365237,38.96,155.97,155.96,14.46062588]
[1748839366727,10.0,155.99,155.96,14.46062588]
[1748839366940,38.96,155.98,155.97,14.46062588]
[1748839367844,10.0,155.99,155.97,14.46062588]
[1748839368143,38.96,155.98,155.97,14.46062588]
[1748839372928,10.0,155.99,155.97,20.87203776]
[1748839373126,10.0,155.99,155.98,14.46062588]
[1748839373347,48.94,155.99,155.98,14.46062588]
[1748839375152,48.94,155.99,155.98,20.87170422]
[1748839376364,251.2,156.03,155.98,20.87170422]
[1748839376530,102.3,156.03,156.02,14.46062588]
[1748839376733,141.24,156.03,156.02,14.46062588]
[1748839376930,48.94,156.03,156.02,14.46062588]
[1748839377540,10.0,156.03,156.02,14.46062588]
[1748839378238,48.94,156.03,156.02,14.46062588]
[1748839380052,48.94,156.03,156.0,14.46062588]
[1748839380351,48.94,156.03,156.01,14.46062588]
[1748839381251,48.94,156.03,156.0,14.46062588]
[1748839381554,48.94,156.03,156.02,14.46062588]
[1748839383357,48.94,156.03,156.02,20.87006056]
[1748839383650,48.94,156.03,156.02,14.46062588]
[1748839385730,48.94,156.03,156.02,20.87006056]
[1748839386954,10.0,156.03,156.02,20.87006056]
[1748839387148,48.94,156.03,156.02,20.87006056]
[1748839390256,48.94,156.03,156.02,14.46062588]
[1748839390457,10.0,156.03,156.02,14.46062588]
[1748839390642,48.92,156.03,156.02,14.46062588]
[1748839392459,48.92,156.03,156.02,20.87006056]
[1748839392764,10.0,156.03,156.02,20.87006056]
[1748839392961,48.92,156.03,156.02,20.87006056]
[1748839393463,48.92,156.03,156.02,14.46062588]
[1748839394261,48.92,156.03,156.02,20.87006056]
[1748839395067,10.0,156.03,156.02,20.87006056]
[1748839395246,6.2157,156.07,156.02,20.87006056]
[1748839395247,9.98,156.07,156.02,20.87006056]
[1748839395575,9.98,156.07,156.06,14.46062588]
[1748839395870,48.9,156.07,156.06,14.46062588]
[1748839396647,9.98,156.07,156.06,14.46062588]
[1748839396843,48.9,156.07,156.06,14.46062588]
[1748839397042,9.98,156.07,156.06,14.46062588]
[1748839397261,48.9,156.07,156.06,14.46062588]
[1748839397463,9.98,156.07,156.06,14.46062588]
[1748839397797,48.9,156.07,156.06,14.46062588]
[1748839398069,9.98,156.07,156.06,14.46062588]
[1748839398244,48.9,156.07,156.06,14.46062588]
[1748839399566,48.9,156.07,156.05,14.46062588]
[1748839401667,48.9,156.07,156.06,14.46062588]
[1748839402283,48.9,156.07,156.06,20.86841775]
[1748839402463,48.9,156.07,156.06,14.46062588]
[1748839406972,48.9,156.07,156.06,20.86841775]
[1748839408173,9.98,156.07,156.06,20.86841775]
[1748839408370,48.9,156.07,156.06,14.46062588]
[1748839410173,48.9,156.07,156.02,16.02352418]
[1748839410357,48.9,156.07,156.06,14.46062588]
[1748839411468,48.9,156.07,156.06,20.86841775]
[1748839413279,48.9,156.07,156.06,14.46062588]
[1748839416186,48.9,156.07,156.06,20.86841775]
[1748839417764,35.03497809,156.12,156.06,20.86841775]
[1748839418088,9.98,156.12,156.11,14.46062588]
[1748839418267,48.88,156.12,156.11,14.46062588]
[1748839419669,63.34062588,156.12,156.06,6.40779187]
[1748839419867,69.74597539,156.12,156.07,20.8679084]
[1748839420087,69.74597539,156.12,156.08,14.46062588]
[1748839420583,69.74597539,156.12,156.1,14.46062588]
[1748839420584,48.88,156.12,156.1,14.46062588]
[1748839421397,38.9,156.11,156.1,14.46062588]
[1748839421579,38.9,156.11,156.09,14.46062588]
[1748839421775,38.9,156.11,156.08,14.46062588]
[1748839423692,45.30585226,156.11,156.08,14.46062588]
[1748839423876,14.46062588,156.1,156.06,14.46062588]
[1748839424278,66.34767814,156.11,156.05,6.40784548]
[1748839424490,66.34767814,156.11,156.07,14.46062588]
[1748839428898,66.34767814,156.11,156.06,14.46062588]
[1748839429117,66.34767814,156.11,156.07,14.46062588]
[1748839429482,9.98,156.1,156.07,14.46062588]
[1748839430179,16.3863346,156.1,156.07,14.46062588]
[1748839430771,9.98,156.1,156.07,14.46062588]
[1748839430970,9.98,156.1,156.08,14.46062588]
[1748839431580,9.98,156.1,156.07,14.46062588]
[1748839435303,9.98,156.1,156.07,9.24468768]
[1748839445426,9.98,156.1,156.09,9.24468768]
[1748839445597,48.88,156.1,156.09,9.24468768]
[1748839445924,9.98,156.1,156.09,9.24468768]
[1748839448726,9.98,156.1,156.09,15.65124799]
[1748839450127,48.88,156.1,156.09,15.65124799]
[1748839454824,9.98,156.1,156.09,15.65124799]
[1748839455148,48.88,156.1,156.09,15.65124799]
[1748839456050,9.98,156.1,156.09,15.65124799]
[1748839456222,48.88,156.1,156.09,15.65124799]
[1748839457251,48.88,156.1,156.09,9.24468768]
[1748839458667,48.88,156.1,156.08,9.24468768]
[1748839459165,48.88,156.1,156.07,9.24468768]
[1748839459383,55.28618999,156.1,156.06,9.24468768]
[1748839459756,55.28618999,156.1,156.05,6.40820249]
[1748839459757,55.28618999,156.1,156.07,9.24468768]
[1748839460767,48.88,156.1,156.08,9.24468768]
[1748839462747,55.28624381,156.1,156.08,9.24468768]
[1748839463274,9.98,156.1,156.08,9.24468768]
[1748839463488,38.9,156.09,156.08,9.24468768]
[1748839465691,38.9,156.09,156.03,6.4090239]
[1748839465856,38.9,156.09,156.07,9.24468768]
[1748839466655,38.9,156.09,156.08,9.24468768]
[1748839468753,38.9,156.09,156.07,9.24468768]
[1748839469961,38.9,156.09,156.05,6.40807054]
[1748839470279,38.9,156.09,156.07,9.24468768]
[1748839470771,45.30668664,156.09,156.07,9.24468768]
[1748839471569,45.30668664,156.09,156.06,9.24468768]
[1748839473067,45.30668664,156.09,156.03,6.40899953]
[1748839473262,9.24468768,156.08,156.04,9.24468768]
[1748839474176,15.65175895,156.08,156.04,9.24468768]
[1748839477371,15.65175895,156.08,156.01,1.6109]
[1748839477372,9.24468768,156.07,156.03,9.24468768]
[1748839478866,9.24468768,156.07,156.02,9.24468768]
[1748839478867,9.24468768,156.06,156.02,9.24468768]
[1748839479071,6.40861317,156.04,156.01,9.24468768]
[1748839480080,55.28832697,156.05,156.02,9.24468768]
[1748839480282,55.28832697,156.05,155.99,6.41054181]
[1748839480485,64.53301465,156.05,156.01,9.24468768]
[1748839481188,69.74494821,156.05,156.01,14.45662124]
[1748839481692,55.28832697,156.05,156.01,14.45662124]
[1748839481981,69.74494821,156.05,156.01,14.45662124]
[1748839484103,14.45662124,156.03,155.99,14.45662124]
[1748839484590,14.45662124,156.03,155.98,14.45662124]
[1748839484771,14.45662124,156.01,155.97,14.45662124]
[1748839484971,48.88,156.0,155.96,14.45662124]
[1748839485583,48.88,156.0,155.94,6.41272284]
[1748839485768,48.88,156.0,155.96,14.45662124]
[1748839486998,48.88,156.0,155.97,14.45662124]
[1748839488604,9.98,156.0,155.99,14.45662124]
[1748839488806,48.9,156.0,155.99,14.45662124]
[1748839489893,48.9,156.0,155.98,14.45662124]
[1748839497524,48.9,156.0,155.94,22.44446668]
[1748839497715,48.9,156.0,155.94,6.41272284]
[1748839498031,48.9,156.0,155.97,14.45662124]
[1748839498906,48.9,156.0,155.93,1.635]
[1748839498907,55.31026039,156.0,155.96,14.45662124]
[1748839501209,55.31026039,156.0,155.97,14.45662124]
[1748839501612,33.1062701,155.99,155.94,14.45662124]
[1748839502024,18.64964886,155.99,155.95,14.45662124]
[1748839503324,18.64964886,155.99,155.95,9.25864667]
[1748839503824,58.15864667,156.0,155.95,9.25864667]
[1748839504032,48.9,156.0,155.98,9.25864667]
[1748839504238,38.94,155.99,155.94,24.07297561]
[1748839504537,38.94,155.99,155.98,9.25864667]
[1748839505035,9.98,156.0,155.98,9.25864667]
[1748839505216,38.94,155.99,155.98,9.25864667]
[1748839505423,9.98,156.0,155.98,15.66960015]
[1748839505621,9.98,156.0,155.99,9.25864667]
[1748839505923,48.92,156.0,155.99,9.25864667]
[1748839507239,48.92,156.0,155.99,14.45917955]
[1748839507840,9.98,156.0,155.99,14.45917955]
[1748839508037,9.98,156.04,155.99,14.45917955]
[1748839508333,38.92,156.02,155.98,6.41095348]
[1748839509118,38.92,156.02,155.95,6.41231163]
[1748839509527,38.92,156.02,156.01,14.45917955]
[1748839510339,9.98,156.04,156.01,20.86888419]
[1748839510640,9.98,156.04,156.03,14.45917955]
[1748839511016,48.9,156.04,156.03,14.45917955]
[1748839512426,48.9,156.04,156.03,20.86820345]
[1748839513747,9.98,156.04,156.03,20.86820345]
[1748839513939,48.9,156.04,156.03,20.86820345]
[1748839515947,9.98,156.04,156.03,20.86820345]
[1748839516249,48.9,156.04,156.03,20.86820345]
[1748839516442,48.9,156.04,156.03,14.45917955]
[1748839517551,9.98,156.04,156.03,20.86820345]
[1748839517734,48.9,156.04,156.03,20.86820345]
[1748839518758,9.98,156.04,156.03,20.86820345]
[1748839518930,48.9,156.04,156.03,20.86820345]
[1748839519541,48.9,156.04,156.03,14.45917955]
[1748839521560,48.9,156.04,156.03,20.86820345]
[1748839522262,148.9,156.07,156.03,36.89076321]
[1748839522464,9.98,156.08,156.06,14.45917955]
[1748839522766,9.98,156.08,156.07,14.45917955]
[1748839523057,158.88,156.12,156.07,14.45917955]
[1748839523249,38.92,156.1,156.08,14.45917955]
[1748839523563,38.92,156.1,156.03,6.40871891]
[1748839523564,14.45917955,156.09,156.03,6.40871891]
[1748839523857,54.92707955,156.1,156.05,14.45917955]
[1748839524041,40.4679,156.1,156.06,14.45917955]
[1748839524363,54.92707955,156.1,156.05,14.45917955]
[1748839524559,14.45917955,156.09,156.03,6.40871891]
[1748839524748,14.45917955,156.09,156.04,14.45917955]
[1748839525752,6.40697078,156.08,156.04,14.45917955]
[1748839525945,9.98,156.07,156.04,14.45917955]
[1748839526149,39.0,156.06,156.04,14.45917955]
[1748839526473,39.0,156.06,156.03,14.45917955]
[1748839527257,39.0,156.06,156.04,14.45917955]
[1748839530560,39.0,156.06,156.05,14.45917955]
[1748839531463,39.0,156.06,156.04,14.45917955]
[1748839535267,39.0,156.06,156.05,14.45917955]
[1748839536569,39.0,156.06,156.05,20.86738204]
[1748839536769,9.98,156.07,156.05,20.86738204]
[1748839536969,38.94,156.06,156.05,6.40820249]
[1748839538178,38.94,156.06,156.05,20.86738204]
[1748839540085,9.98,156.07,156.05,20.86738204]
[1748839540289,48.92,156.07,156.06,14.45917955]
[1748839540873,9.98,156.07,156.06,14.45917955]
[1748839541076,48.94,156.07,156.06,20.86697142]
[1748839551503,9.98,156.07,156.06,20.86697142]
[1748839551700,48.88,156.07,156.06,20.86697142]
[1748839551880,48.88,156.07,156.0,43.52519043]
[1748839552095,48.88,156.07,156.04,14.45917955]
[1748839553296,9.98,156.07,156.06,14.45917955]
[1748839553507,48.88,156.07,156.06,20.86697142]
[1748839553800,48.88,156.07,156.06,14.45917955]
[1748839554004,48.88,156.07,156.06,20.86697142]
[1748839554704,48.96,156.07,156.06,20.86697142]
[1748839559517,38.98,156.07,156.06,20.86697142]
[1748839560934,38.98,156.07,156.0,42.02476875]
[1748839561137,53.43917955,156.07,156.03,14.45917955]
[1748839561429,59.8465724,156.07,156.03,14.45917955]
[1748839561633,14.45917955,156.06,156.02,14.45917955]
[1748839562013,59.8465724,156.07,156.02,14.45917955]
[1748839562425,45.38739285,156.07,156.03,14.45917955]
[1748839562632,38.98,156.07,156.04,14.45917955]
[1748839563535,38.98,156.07,156.05,14.45917955]
[1748839564133,38.98,156.07,156.04,14.45917955]
[1748839569327,14.45917955,156.06,155.98,26.0]
[1748839569526,14.45917955,156.04,156.0,14.45917955]
[1748839569725,63.41917955,156.03,155.93,104.83242086]
[1748839569940,14.45917955,156.01,155.97,14.45917955]
[1748839571049,59.84864879,156.02,155.97,20.87062974]
[1748839571439,38.98,156.02,155.99,14.45917955]
[1748839571753,38.98,156.02,156.0,14.45917955]
[1748839572442,158.9,156.03,156.0,14.45917955]
[1748839572630,38.98,156.02,156.0,14.45917955]
[1748839573741,38.98,156.02,156.0,20.86921291]
[1748839573944,38.98,156.02,156.01,14.45917955]
[1748839574842,10.0,156.03,156.01,20.86902507]
[1748839575145,10.0,156.03,156.01,6.40984552]
[1748839575146,38.98,156.02,156.01,6.40984552]
[1748839576347,38.98,156.02,156.01,20.86902507]
[1748839576933,10.0,156.03,156.01,20.86902507]
[1748839577118,38.98,156.02,156.01,6.40984552]
[1748839577322,38.98,156.02,156.01,20.86902507]
[1748839578546,10.0,156.03,156.01,20.86902507]
[1748839578744,10.0,156.03,156.02,14.45917955]
[1748839578947,10.02,156.07,156.02,20.86861423]
[1748839579162,38.98,156.05,156.02,6.40943468]
[1748839580253,38.98,156.05,156.04,14.45917955]
[1748839580457,10.02,156.07,156.04,14.45917955]
[1748839580760,38.98,156.06,156.04,14.45917955]
[1748839581153,38.98,156.06,156.04,20.86756987]
[1748839581353,39.0,156.06,156.04,20.86756987]
[1748839581858,39.0,156.06,156.05,14.45917955]
[1748839583664,53.45917955,156.06,156.02,14.45917955]
[1748839584543,39.0,156.06,156.02,14.45917955]
[1748839584746,45.40786799,156.06,156.02,14.45917955]
[1748839584942,14.45917955,156.03,155.99,14.45917955]
[1748839585148,38.98,156.02,155.99,14.45917955]
[1748839585348,49.0,156.02,155.99,14.45917955]
[1748839586144,49.0,156.02,156.0,14.45917955]
[1748839586569,49.0,156.02,156.01,14.45917955]
[1748839586755,10.02,156.02,156.01,14.45917955]
[1748839586958,49.0,156.02,156.01,14.45917955]
[1748839588073,49.0,156.02,156.01,20.86902507]
[1748839588258,49.0,156.02,156.01,14.45917955]
[1748839590574,49.0,156.02,156.01,20.86902507]
[1748839593279,38.98,156.02,156.01,20.86902507]
[1748839593670,38.98,156.02,155.97,6.41148938]
[1748839593866,38.98,156.02,156.0,14.45917955]
[1748839594074,38.98,156.02,155.97,6.41148938]
[1748839594275,38.98,156.02,155.99,14.45917955]
[1748839597977,38.98,156.02,156.0,14.45917955]
[1748839606167,38.98,156.02,156.01,14.45917955]
[1748839606373,10.02,156.05,156.01,14.45917955]
[1748839606573,10.02,156.05,156.04,14.45917955]
[1748839606774,49.0,156.05,156.04,14.45917955]
[1748839607493,49.0,156.05,156.04,16.8406605]
[1748839607787,49.0,156.05,156.04,16.84032884]
[1748839608703,49.0,156.05,156.04,20.86779272]
[1748839609098,49.0,156.05,156.04,25.63040482]
[1748839609297,49.0,156.05,156.04,23.24912398]
[1748839610106,48.98,156.05,156.04,23.24912398]
[1748839610292,48.98,156.05,156.04,23.248211]
[1748839610595,48.98,156.05,156.04,20.86779272]
[1748839610798,48.98,156.05,156.04,23.24793339]
[1748839611192,48.98,156.05,156.04,20.86779272]
[1748839611995,10.02,156.05,156.04,23.24788591]
[1748839612205,10.02,156.05,156.04,20.86779272]
[1748839612504,10.02,156.05,156.04,23.24756416]
[1748839612800,10.02,156.05,156.04,23.24760154]
[1748839612997,10.02,156.05,156.04,20.86779272]
[1748839613189,10.02,156.05,156.04,23.24740923]
[1748839613391,38.96,156.07,156.04,23.24725463]
[1748839613590,10.02,156.09,156.06,20.86697142]
[1748839613791,10.02,156.09,156.08,14.45917955]
[1748839614001,48.98,156.09,156.08,16.83864146]
[1748839614499,48.98,156.09,156.08,16.83766726]
[1748839614692,48.98,156.09,156.08,16.83758299]
[1748839614893,48.98,156.09,156.08,16.83599904]
[1748839615197,48.96,156.09,156.07,14.45917955]
[1748839615381,48.96,156.09,156.08,2.37711351]
[1748839616002,48.96,156.09,156.07,14.45917955]
[1748839616199,48.96,156.09,156.08,2.37712773]
[1748839616499,48.96,156.09,156.08,2.37811808]
[1748839616703,48.96,156.09,156.08,4.75523203]
[1748839616887,48.96,156.09,156.08,2.37711395]
[1748839617090,48.96,156.09,156.08,4.75451073]
[1748839617508,48.96,156.09,156.08,4.75457797]
[1748839618687,48.96,156.09,156.08,4.75473767]
[1748839618886,48.96,156.09,156.08,2.37711395]
[1748839619321,48.96,156.09,156.08,4.75473888]
[1748839619494,48.96,156.09,156.08,2.37711395]
[1748839620188,48.96,156.09,156.08,4.75575113]
[1748839620398,48.96,156.09,156.08,7.13489137]
[1748839620704,48.96,156.09,156.08,9.51427314]
[1748839621001,48.96,156.09,156.08,9.51427383]
[1748839621307,48.96,156.09,156.08,11.89364202]
[1748839622091,48.96,156.09,156.08,9.51500484]
[1748839622308,48.96,156.09,156.08,11.89338185]
[1748839622517,48.96,156.09,156.08,11.89328929]
[1748839622807,48.96,156.09,156.08,9.51500484]
[1748839623186,48.96,156.09,156.08,9.51414905]
[1748839623387,48.96,156.09,156.08,21.59504415]
[1748839623608,48.96,156.09,156.08,7.1358646]
[1748839623810,48.96,156.09,156.08,9.51436295]
[1748839624312,48.96,156.09,156.08,11.89289603]
[1748839624909,48.96,156.09,156.08,14.27116747]
[1748839625809,48.96,156.09,156.08,16.64904606]
[1748839626012,48.96,156.09,156.08,14.27005966]
[1748839626308,48.96,156.09,156.08,16.64792863]
[1748839626513,48.96,156.09,156.08,14.27005966]
[1748839626829,48.96,156.09,156.08,11.89069147]
[1748839627413,48.96,156.09,156.08,14.26881913]
[1748839627414,69.82573986,156.09,156.08,14.26881913]
[1748839627607,69.82573986,156.09,156.08,11.89069147]
[1748839629317,55.36656031,156.09,156.08,11.89069147]
[1748839629619,69.82573986,156.09,156.08,11.89069147]
[1748839630418,69.82573986,156.09,156.08,9.51219312]
[1748839630922,69.82573986,156.09,156.08,7.13392168]
[1748839631523,69.82573986,156.09,156.08,4.75564703]
[1748839632311,69.82573986,156.09,156.08,2.37711395]
[1748839633301,88.47538872,156.09,156.08,2.37711395]
[1748839635823,10.02,156.09,156.08,16.8362935]
[1748839636000,48.94,156.09,156.08,16.8362935]
[1748839637026,10.02,156.09,156.08,16.8362935]
[1748839637211,48.94,156.09,156.08,16.8362935]
[1748839637408,9.98,156.14,156.08,37.70244383]
[1748839637623,48.94,156.14,156.08,23.24326428]
[1748839637825,48.94,156.14,156.13,14.45917955]
[1748839638404,9.98,156.14,156.13,14.45917955]
[1748839638607,48.94,156.14,156.13,14.45917955]
[1748839639831,48.94,156.14,156.13,20.86409852]
[1748839642907,6.2181,156.21,156.13,20.86409852]
[1748839642908,12.5,156.2,156.13,20.86409852]
[1748839643228,9.98,156.18,156.17,14.45917955]
[1748839644121,9.98,156.18,156.17,20.86245802]
[1748839645031,12.5,156.2,156.17,20.86245802]
[1748839645238,51.46,156.2,156.19,14.45917955]
[1748839645742,51.44,156.2,156.19,14.45917955]
[1748839646326,12.5,156.2,156.19,14.45917955]
[1748839646534,51.44,156.2,156.19,14.45917955]
[1748839647942,51.44,156.2,156.17,6.40327847]
[1748839648142,51.44,156.2,156.19,14.45917955]
[1748839648530,12.5,156.2,156.19,14.45917955]
[1748839648731,51.44,156.2,156.19,14.45917955]
[1748839649727,12.5,156.2,156.19,14.45917955]
[1748839649940,51.42,156.2,156.19,14.45917955]
[1748839650139,12.5,156.2,156.19,14.45917955]
[1748839650446,12.5,156.2,156.19,20.86163809]
[1748839652434,12.5,156.2,156.18,6.40274201]
[1748839652635,12.5,156.2,156.19,14.45917955]
[1748839657748,12.5,156.2,156.12,106.39243261]
[1748839657934,12.5,156.2,156.18,14.45917955]
[1748839658330,12.5,156.2,156.19,14.45917955]
[1748839662042,12.5,156.2,156.12,7.98513514]
[1748839662043,33.3612282,156.2,156.12,7.98513514]
[1748839662251,14.45917955,156.17,156.13,14.45917955]
[1748839662441,48.92,156.16,156.13,14.45917955]
[1748839663364,69.7829971,156.16,156.12,14.45917955]
[1748839665050,55.32381755,156.16,156.12,14.45917955]
[1748839666556,55.32381755,156.16,156.13,14.45917955]
[1748839667450,55.32381755,156.16,156.1,6.40584855]
[1748839667657,55.32381755,156.16,156.13,14.45917955]
[1748839672538,55.32381755,156.16,156.12,14.45917955]
[1748839673759,69.7829971,156.16,156.12,14.45917955]
[1748839677772,69.7829971,156.16,156.11,14.45917955]
[1748839680183,69.7829971,156.16,156.12,14.45917955]
[1748839681200,69.7829971,156.16,156.1,6.40612472]
[1748839681367,69.7829971,156.16,156.12,14.45917955]